Cogmind - Beta 14 @@@ ROGUE MODE // 2025.03.06 @ 16:38:15 Player: mix Result: Destroyed by DAS Turret with DAS Cannon Performance ------------- Evolutions (1) 500 Regions Visited (5) 1000 Robots Destroyed (22) 110 Value Destroyed (446) 446 Prototype IDs (24) 480 Alien Tech Used (0) 0 Bonus (300) 300 TOTAL SCORE: 2836 Bonus ------- Aligned with FarCom 300 Cogmind --------- Core Integrity 0/400 Matter 246/300 Energy 90/100 System Corruption 2% Temperature Cool (20) Movement Core (50) Location -9/Exiles Parts ------- > --- POWER (1) -------- (None) > --- PROPULSION (2) --- (None) > --- UTILITY (4) ------ (None) > --- WEAPON (2) ------- (None) > --- INVENTORY (5) ---- (None) Peak State ------------ > --- POWER ------------ Light Ion Engine > --- PROPULSION ------- Flight Unit Flight Unit > --- UTILITY ---------- Lightpack 2.0 Cloak of Protection > --- WEAPON ----------- Small Laser > --- INVENTORY -------- (None) [Rating: 42] Favorites ----------- Power Light Ion Engine Engine Light Ion Engine Propulsion Flight Unit Treads Light Treads Flight Unit Flight Unit Utility Small Storage Unit Device Cloak of Protection Storage Small Storage Unit Processor Signal Interpreter Weapon Grenade Launcher Energy Gun Small Laser Ballistic Gun Assault Rifle Launcher Grenade Launcher Build | -11 -10 -10 -9 -9 -9 ------- Run | Yrd Mat Min Mat Min Exi Slots Evolved 2 | . . . 2 . . Power . | . . . . . . Propulsion . | . . . . . . Utility 2 | . . . 2 . . Weapon . | . . . . . . Parts Attached 24 | 6 1 4 3 3 7 Power 2 | 1 . . . 1 . Engine 2 | 1 . . . 1 . Core . | . . . . . . Reactor . | . . . . . . Propulsion 5 | 2 . . 1 2 . Treads 2 | 2 . . . . . Leg . | . . . . . . Wheel . | . . . . . . Hover . | . . . . . . Flight 3 | . . . 1 2 . Utility 11 | 1 . 2 1 . 7 Device 3 | . . 1 . . 2 Storage 6 | 1 . . . . 5 Processor 2 | . . 1 1 . . Hackware . | . . . . . . Protection . | . . . . . . Artifact . | . . . . . . Weapon 6 | 2 1 2 1 . . Energy Gun 3 | 1 1 . 1 . . Energy Cannon . | . . . . . . Ballistic Gun 1 | 1 . . . . . Ballistic Cannon . | . . . . . . Launcher 2 | . . 2 . . . Special Weapon . | . . . . . . Impact Weapon . | . . . . . . Slashing Weapon . | . . . . . . Piercing Weapon . | . . . . . . Special Melee Weapon . | . . . . . . Unidentified Prototypes 1 | . . 1 . . . Parts Lost 12 | . 4 . 3 . 5 Power 1 | . . . . . 1 Propulsion 5 | . 2 . 1 . 2 Utility 1 | . . . . . 1 Weapon 5 | . 2 . 2 . 1 Highest Loss Streak 5 | . 4 . 3 . 5 To Critical Strikes 1 | . 1 . . . . Average Slot Usage (%) 62 | . 62 68 39 45 63 Engine 12 | . 14 14 10 7 10 Treads 2 | . 13 . . . . Flight 5 | . . . 3 15 21 Device 3 | . . . 6 . 9 Storage 9 | . 14 13 . . 5 Processor 7 | . . 13 . 11 5 Energy Gun 6 | . 14 1 1 11 11 Ballistic Gun 1 | . 7 . . . . Launcher 13 | . . 24 18 . . Peak Build Rating 42 | 6 6 17 17 6 42 Average Rating 10 | 4 4 5 11 5 28 On Entrance 5 | . 6 3 17 3 6 Naked Turns . | . . . . . . Heaviest Build 23 | 12 12 23 23 4 17 Greatest Support 40 | 40 40 3 4 8 8 Greatest Overweight (x) 7 | . 2 7 7 . 4 Average Overweight (x) 1 | . 1 3 2 . . Largest Inventory Capacity 40 | 8 8 8 5 5 40 Average Capacity 10 | 7 8 7 5 5 23 Most Carried 6 | 4 3 5 4 5 6 Average Carried 1 | . 1 2 2 2 . Final Capacity 8 | 8 8 5 5 5 5 Final Carried 3 | . 3 3 2 2 . Class Distribution -------------------- 74% | Mutant 14% | Scavenger-Mutant 11% | Hauler-Mutant Dominant Class ---------------- Mutant | -10/Materials Mutant | -10/Mines Mutant | -9/Materials Scavenger-Mutant | -9/Mines Hauler-Mutant | -9/Exiles Resources | -11 -10 -10 -9 -9 -9 ----------- Run | Yrd Mat Min Mat Min Exi Matter Collected 554 | 215 143 56 79 52 9 Remotely . | . . . . . . Salvage Created 565 | . 250 107 156 52 . Parts 38 | . 14 6 10 8 . Haulers Intercepted 2 | . 1 . 1 . . Recyclers Shooed . | . . . . . . Parts Field Recycled . | . . . . . . Retrieved Matter . | . . . . . . Parts Self-Destructed . | . . . . . . Prevented . | . . . . . . Kills | -11 -10 -10 -9 -9 -9 ------- Run | Yrd Mat Min Mat Min Exi Combat Hostiles Destroyed 17 | . 8 2 4 3 . Guns 11 | . 8 . . 3 . AOE 6 | . . 2 4 . . Classes Destroyed 8 | . 4 2 2 . . Worker 1 | . 1 . . . . Builder 1 | . . 1 . . . Tunneler 1 | . . 1 . . . Hauler 2 | . 1 . 1 . . Swarmer 9 | . 6 . . 3 . Grunt 6 | . 2 2 2 . . Duelist 1 | . . . 1 . . Sentry 1 | . . . 1 . . Best Kill Streak 5 | . 5 2 5 3 . Combat Bots Only 4 | . 4 2 4 3 . Max Kills in Single Turn 2 | . 2 1 2 1 . Gunslinging . | . . . . . . Exploded 2 | . . 1 2 . . Melee . | . . . . . . Uniques/NPCs Destroyed . | . . . . . . Combat | -11 -10 -10 -9 -9 -9 -------- Run | Yrd Mat Min Mat Min Exi Hostile Shots Fired 153 | . 88 2 16 7 40 Missed 32 | . 16 1 7 1 7 Damage Taken 1822 | . 635 107 213 48 819 Core 589 | . 136 36 56 25 336 Absorbed by Shields . | . . . . . . Core Remaining (%) 65 | 100 . 31 . . . Volleys Fired 58 | . 39 4 6 4 5 Largest 2 | . 2 2 2 1 1 Hottest 70 | . 70 70 60 40 40 Shots Fired 97 | . 72 8 8 4 5 Gun 85 | . 72 2 2 4 5 Cannon . | . . . . . . Launcher 12 | . . 6 6 . . Special . | . . . . . . Kinetic 36 | . 36 . . . . Thermal 49 | . 36 2 2 4 5 Explosive 12 | . . 6 6 . . Electromagnetic . | . . . . . . Robot Hit Streak 6 | . 4 5 4 6 3 Robot Miss Streak 4 | . 4 1 1 . 2 Penetration Max . | . . . . . . Secondary Targets 1 | . 1 . . . . Max Gunslinging Chain 1 | . 1 . . . . Shots Hit Robots 53 | . 35 5 6 4 3 Core Hits 31 | . 14 4 8 3 2 Critical Kills . | . . . . . . Critical Parts Destroyed . | . . . . . . Critical Strikes 1 | . 1 . . . . Burn 1 | . 1 . . . . Melee Attacks . | . . . . . . Impact . | . . . . . . Slashing . | . . . . . . Piercing . | . . . . . . Sneak Attacks . | . . . . . . Combat Hostiles . | . . . . . . Follow-up Attacks . | . . . . . . Damage Inflicted 1056 | . 526 188 265 46 31 Guns 634 | . 526 10 21 46 31 Cannons . | . . . . . . Explosions 422 | . . 178 244 . . Melee . | . . . . . . Ramming . | . . . . . . Kinetic 258 | . 258 . . . . Thermal 376 | . 268 10 21 46 31 Explosive 422 | . . 178 244 . . Electromagnetic . | . . . . . . Impact . | . . . . . . Slashing . | . . . . . . Piercing . | . . . . . . Highest Corruption 2 | . . . . . 2 Average Corruption 1 | . . . . . 1 Corruption Purged . | . . . . . . Corruption Blocked . | . . . . . . Overload Shots . | . . . . . . Overflow Damage 17 | . . 15 2 . . Projectiles . | . . . . . . Explosions 17 | . . 15 2 . . Melee . | . . . . . . Knockbacks . | . . . . . . Impact . | . . . . . . Kinetic . | . . . . . . Secondary . | . . . . . . Self-Inflicted Damage 183 | . . 97 86 . . Shots 7 | . . 4 3 . . Rammed . | . . . . . . Targets Rammed . | . . . . . . Kicked . | . . . . . . Crushed . | . . . . . . Highest Temperature 237 | . 237 24 7 . . Average Temperature 100 | . 108 12 4 . . Received Heat Transfer 188 | . 138 6 24 . 20 Effects 1 | . 1 . . . . Energy Bleed 1 | . 1 . . . . Siege Activations . | . . . . . . Robots Corrupted . | . . . . . . Combat Hostiles . | . . . . . . Parts Fried . | . . . . . . Impact Corruptions . | . . . . . . Robots Melted . | . . . . . . Combat Hostiles . | . . . . . . Parts Melted 3 | . 2 . . 1 . Heat Transferred 1090 | . 840 25 50 100 75 Parts Sabotaged . | . . . . . . Parts Stolen . | . . . . . . Parts Stripped . | . . . . . . Power Chain Reactions . | . . . . . . Alert | -11 -10 -10 -9 -9 -9 ------- Run | Yrd Mat Min Mat Min Exi Peak Influence 216 | . 197 142 216 184 . Initial 84 | . . 76 . 84 . Average 76 | . 128 64 40 174 . Maximum Alert Level 1 | . . . 1 . . Low Security (%) 97 | 100 100 100 85 100 . Level 1 2 | . . . 14 . . Level 2 . | . . . . . . Level 3 . | . . . . . . Level 4 . | . . . . . . Level 5 . | . . . . . . High Security . | . . . . . . Max Security . | . . . . . . Squads Dispatched 1 | . 1 . . . . Investigation 1 | . 1 . . . . Extermination . | . . . . . . Reinforcement . | . . . . . . Assault . | . . . . . . Garrison . | . . . . . . Intercept . | . . . . . . Searches Triggered . | . . . . . . Construction Impeded . | . . . . . . Haulers Reinforced . | . . . . . . Active Scanning Responses . | . . . . . . Cargo Convoy Interrupts . | . . . . . . Stealth | -11 -10 -10 -9 -9 -9 --------- Run | Yrd Mat Min Mat Min Exi Distress Signals 4 | . 4 . . . . Communications Jammed . | . . . . . . Distress Signals . | . . . . . . Times Spotted 32 | . 12 2 6 5 7 Peak Tracking Total 12 | . 5 2 5 12 12 Tactical Retreats 2 | . . . 1 1 . Traps | -11 -10 -10 -9 -9 -9 ------- Run | Yrd Mat Min Mat Min Exi Traps Triggered 1 | . 1 . . . . Indirectly . | . . . . . . Trap Hack Attempts . | . . . . . . Triggered . | . . . . . . Disarmed . | . . . . . . Reprogrammed . | . . . . . . Reused . | . . . . . . Traps Extracted . | . . . . . . Installed 2 | . . 2 . . . Triggered . | . . . . . . Machines | -11 -10 -10 -9 -9 -9 ---------- Run | Yrd Mat Min Mat Min Exi Machines Disabled 3 | . . . 3 . . Max in Single Turn 1 | . . . 1 . . Machines Repaired . | . . . . . . Machines Dismantled . | . . . . . . Machines Sabotaged . | . . . . . . Overloaded Fab Kills . | . . . . . . Hacking | -11 -10 -10 -9 -9 -9 --------- Run | Yrd Mat Min Mat Min Exi Machines Accessed 2 | . . 1 . . 1 Terminals . | . . . . . . Fabricators . | . . . . . . Repair Stations . | . . . . . . Recycling Units . | . . . . . . Scanalyzers . | . . . . . . Garrison Access . | . . . . . . Total Hacks 2 | . . 1 . . 1 Successful 2 | . . 1 . . 1 Failed . | . . . . . . Catastrophic . | . . . . . . Database Lockouts . | . . . . . . Manual 1 | . . . . . 1 Terminals . | . . . . . . Fabricators . | . . . . . . Repair Stations . | . . . . . . Recycling Units . | . . . . . . Scanalyzers . | . . . . . . Garrison Access . | . . . . . . Terminal Hacks 2 | . . 1 . . 1 Open Door 1 | . . 1 . . . Derelict Proto ID Bank 1 | . . . . . 1 Fabricator Hacks . | . . . . . . Repair Station Hacks . | . . . . . . Recycling Unit Hacks . | . . . . . . Scanalyzer . | . . . . . . Garrison Access Hacks . | . . . . . . Unauthorized Hacks . | . . . . . . Terminals . | . . . . . . Fabricators . | . . . . . . Repair Stations . | . . . . . . Recycling Units . | . . . . . . Scanalyzers . | . . . . . . Garrison Access . | . . . . . . Data Cores Recovered . | . . . . . . Used . | . . . . . . Hacking Detections . | . . . . . . Full Trace Events . | . . . . . . Feedback Events . | . . . . . . Feedback Blocked . | . . . . . . Robot Schematics Acquired . | . . . . . . Robots Built . | . . . . . . Authchips . | . . . . . . Time . | . . . . . . Total Robot Build Rating . | . . . . . . Part Schematics Acquired . | . . . . . . Parts Built . | . . . . . . Authchips . | . . . . . . Time . | . . . . . . Total Part Build Rating . | . . . . . . Parts Repaired . | . . . . . . Time . | . . . . . . Parts Recycled . | . . . . . . Recycled Matter . | . . . . . . Retrieved Matter . | . . . . . . Retrieved Components . | . . . . . . Parts Scanalyzed . | . . . . . . Part Schematics Acquired . | . . . . . . Parts Damaged . | . . . . . . Bothacking | -11 -10 -10 -9 -9 -9 ------------ Run | Yrd Mat Min Mat Min Exi Used RIF Installer . | . . . . . . Robots Hacked . | . . . . . . Non-combat . | . . . . . . Combat . | . . . . . . Robot Hacks Applied . | . . . . . . Relay Couplers Released . | . . . . . . Fabnet Peak Effective % . | . . . . . . Robots Rewired . | . . . . . . Allies Hacked . | . . . . . . Hacks Repelled . | . . . . . . Allies | -11 -10 -10 -9 -9 -9 -------- Run | Yrd Mat Min Mat Min Exi Total Allies . | . . . . . . Largest Group . | . . . . . . Highest-Rated Group . | . . . . . . Highest-Rated Ally . | . . . . . . Total Orders . | . . . . . . Ally Attacks . | . . . . . . Total Damage . | . . . . . . Kills . | . . . . . . Allies Corrupted . | . . . . . . Allies Melted . | . . . . . . Intel | -11 -10 -10 -9 -9 -9 ------- Run | Yrd Mat Min Mat Min Exi Robot Analysis Total . | . . . . . . Derelict Logs Recovered 3 | . . 2 . 1 . Drone Launches 16 | . . . 16 . . Drone Recoveries . | . . . . . . Exploration | -11 -10 -10 -9 -9 -9 ------------- Run | Yrd Mat Min Mat Min Exi Turns Passed 2058 | 60 354 889 253 64 438 Spaces Moved 1162 | 38 140 361 132 132 359 Core 550 | 11 90 361 78 5 5 Treads 77 | 27 50 . . . . Legs . | . . . . . . Wheels . | . . . . . . Hover . | . . . . . . Flight 535 | . . . 54 127 354 Fastest Speed 35 | 50 150 150 35 37 37 Average Speed 154 | 128 153 238 175 37 109 Slowest Speed 400 | 160 160 400 400 50 250 Overloaded Moves . | . . . . . . Propulsion Burnouts . | . . . . . . Robots Hopped . | . . . . . . Cave-ins Triggered . | . . . . . . Exploration Rate (%) 42 | 4 32 87 22 47 64 Regions Visited 5 Branch Regions 3 Pre-discovered Areas 1 | . . . . 1 . Known Exits Taken 1 | . . . 1 . . Unknown Exits Taken 4 | 1 1 1 . 1 . Scrap Searched 1 | . . 1 . . . Spaces Dug . | . . . . . . Terrain Destroyed 93 | . . 57 36 . . Melee . | . . . . . . Projectile . | . . . . . . AOE 93 | . . 57 36 . . Terrain Rammed . | . . . . . . Walls Destroyed . | . . . . . . Machines Disabled . | . . . . . . Actions | -11 -10 -10 -9 -9 -9 --------- Run | Yrd Mat Min Mat Min Exi Total 1331 | 49 207 385 145 141 404 Wait 53 | . 24 11 1 . 17 Move 1157 | 37 139 360 131 131 359 Hop . | . . . . . . Pick Up 24 | 6 4 2 2 3 7 Fast Attach . | . . . . . . Attach 23 | 6 1 3 3 3 7 Detach 3 | . . 2 . . 1 Swap 1 | . . 1 . . . Drop 10 | . . . 2 . 8 Fire 58 | . 39 4 6 4 5 Melee . | . . . . . . Ram . | . . . . . . Kick . | . . . . . . Crush . | . . . . . . Escape Stasis . | . . . . . . Rewire . | . . . . . . Trap 2 | . . 2 . . . Miscellaneous . | . . . . . . Route ------- -11/Scrapyard -10/Materials -10/Mines -9/Materials -9/Mines -9/Exiles History --------- Turn | Location | Event 7 | -11/Scrapyard | Discovered new exit (range 15) 61 | -11/Scrapyard | Entered Materials 225 | -10/Materials | Core integrity fell below 50% 280 | -10/Materials | Lost 4 parts (2n2w) 304 | -10/Materials | Build established: Mutant 392 | -10/Materials | Discovered new exit (range 7) 415 | -10/Materials | Entered Mines 540 | -10/Mines | Learned location of 1 exit from Materials 816 | -10/Mines | Found a hidden stash of uninstalled traps 928 | -10/Mines | Learned Materials terminal intel 1216 | -10/Mines | Discovered new exit (range 13) 1242 | -10/Mines | Found the Drone Emporium 1253 | -10/Mines | Found Prototype Device 1256 | -10/Mines | Identified Decoy Drone Bay 1304 | -10/Mines | Entered Materials 1304 | -9/Materials | Evolved 2 slots: Utility x2 1305 | -9/Materials | Identified exit to Mines 1306 | -9/Materials | Loaded intel: 12 terminal locations 1372 | -9/Materials | Lost 16 allies 1557 | -9/Materials | Entered Mines 1559 | -9/Mines | Lost 3 parts (1n2w) 1576 | -9/Mines | Assembled infested the area 1619 | -9/Mines | Discovered new exit (range 5) 1621 | -9/Mines | Entered Exiles 1630 | -9/Exiles | Met 8R-AWN 1637 | -9/Exiles | Met EX-HEX 1647 | -9/Exiles | Met EX-BIN 1653 | -9/Exiles | Aligned with FarCom system 1653 | -9/Exiles | Given EX-Vault access code 1662 | -9/Exiles | Opened EX-Vault 1667 | -9/Exiles | Found Army-in-a-Box 1679 | -9/Exiles | Found Lightpack 2.0 1685 | -9/Exiles | Found Cloak of Protection 1712 | -9/Exiles | Warned to stay clear of 0b10 Research branches 1821 | -9/Exiles | Build established: Scavenger-Mutant 1915 | -9/Exiles | Met EX-DEC 2042 | -9/Exiles | Attacked by the Exiles 2056 | -9/Exiles | Core integrity fell below 50% 2059 | -9/Exiles | Core integrity fell below 20% 2059 | -9/Exiles | Destroyed by DAS Turret with DAS Cannon Last Messages --------------- Discarded Visual Processing Unit. EX-DEC: Ah I see we have a visitor. One wrong move in here and I'll invert your atomic chain! EX-DEC: "Oops, I hope HEX didn't hear that..." EXILES: Hostile robot within lab perimeter. Defensive protocols time, folks! Flight Unit destroyed. EX-DEC: "Let's see what this bad boy can do..." EX-DEC deploys DAS Turret. Lgt. Ion Engine destroyed. Knocked back. Flight Unit destroyed. Sml. Laser destroyed. Cloak of Protection destroyed. Knocked back. EX-BIN: "I just want to science!" Knocked back. Acquired 9 matter. Dropped Lightpack 2.0. Map ----- +----------------------------------------------------+ | ##" ""?????????????" """????????## | | #"" #??????????????" ?????????# | | #?????????????"" ?????????#" "X" | | ##????????????"" "#????????#" """ | | "#???????????? ""?????????#" """"" | | ###???????????" "?????????##" ###### | | ##??????????# #????????##"" #????? | | "###"" ######???### ###?######"" #????? | | "#?##" """#####X# #"###""""""" ##???? | | ##??#" """""" " "" ##??? | | ###???#"# "" "" " #### | | #?????#### " " | | ?????????### | | ???????????### | | ?????????????## z | | ??????????????## | | ???????????????##" | | ????????????????#""" """""" | | ???????????????##" ######""" | | ???????????????#"" ""##????#####""" | | ??????????????##""" """##?????????##""" | | ??????????????#""" % """##???????????#"""" | | ??????????????#""" % a""#????????????#"" | | ??????????????#"" % ###???????????"""" | | ??????????????#""" % %%c #???????????? | | ??????????????#"" @ a a "?????? | | ??????????????##"" t a ????? | | ???????????????#"""" a a????? | | ???????????????## ????? | | ????????????????#" c " ?????? | | ????????????????#"""" ""????????? " | | ????????????????#"" ""##???????????" | | ????????????????#" """"##????????????? | | ?????????????????""" """#?????????????? | | ?????????????????# "????????????????? | | ?????????????????#"" """#???????????????? | | ??????????????????#""" ##???????????????? | | ???????????????????#"""" ??????????????????? | | ?????????????????????# #?????????????????? | | ????????????????????????## ???????????????????? | | ??????????????????????????# ?????????????????????? | | ?????????????????????????????????????????????????? | | ?????????????????????????????????????????????????? | | ?????????????????????????????????????????????????? | | ?????????????????????????????????????????????????? | | ?????????????????????????????????????????????????? | | ?????????????????????????????????????????????????? | | ?????????????????????????????????????????????????? | | ?????????????????????????????????????????????????? | | ?????????????????????????????????????????????????? | +----------------------------------------------------+ Best States ------------- Heat Dissipation 28 Energy Generation 10 Energy Capacity 125 Matter Stores 300 Matter Capacity 300 Sight Range 16 Terrain Scan Density 10 Cloak Strength 5 Evasion (%) 63 Recoil Reduction 2 Item Schematics ----------------- None Robot Schematics ------------------ None Fabricated ------------ Nothing Alien Tech Used ----------------- None Achievements -------------- None Challenges ------------ None Game ------ Seed PulseSapperObliterator Manual? 0 Play Time 00:15:35 Cumulative 58.0 hours Start 2025.03.06 @ 16:22:03 End 2025.03.06 @ 16:38:15 Sessions 1 Manual Loads 0 Difficulty Rogue Special Mode None Game No. 82 Rogue 68 Adventurer 14 Explorer 0 Win Type - Total 0 Types 0/0/0/0/0/0/0/0/0 Lore% 20 Gallery% 41 Achievement% 38 Wizard Run 0 Options --------- Layout 1 ASCII 0 Keyboard 0 Movement Mouse Keybinds 0 Fullscreen 1 Font 24/Smallcaps Map View 50x35 Zoom Use 57% Tactical HUD 0 Map Filters NONE Filters NONE Steam 1 RUN: e07c6a14-23bf-4429-bd9c-e851720a95ca